bitfinex/quotes_ETHUSD_20251108
["timestamp","ask_amount","ask_price","bid_price","bid_amount"]
[1762592042925,1.35960698,3464.2,3464.1,0.001]
[1762592043327,2.88635748,3464.6,3464.1,0.001]
[1762592043328,0.4949,3464.7,3464.2,2.8866673]
[1762592043564,0.4929,3464.6,3464.2,2.8866673]
[1762592044532,0.4836,3464.3,3464.2,2.8866673]
[1762592044933,0.4836,3464.3,3464.1,2.88772824]
[1762592045225,0.4124,3464.2,3464.1,2.88772824]
[1762592045431,0.4124,3464.2,3464.1,0.001]
[1762592045626,0.9053,3464.2,3464.1,0.001]
[1762592045823,0.9053,3464.2,3464.1,2.88775269]
[1762592046039,0.9053,3464.2,3464.1,0.001]
[1762592046630,1.08023326,3464.2,3464.1,0.001]
[1762592046826,0.4124,3464.2,3464.1,0.001]
[1762592047266,0.9053,3464.2,3464.1,0.001]
[1762592048264,5.05168136,3464.2,3464.1,0.001]
[1762592051465,5.45718536,3464.2,3464.1,0.001]
[1762592051675,2.88700271,3463.8,3463.7,0.001]
[1762592051845,8.57823706,3463.8,3463.7,0.001]
[1762592052062,9.07113706,3463.8,3463.7,0.001]
[1762592053446,10.33084906,3463.8,3463.7,0.001]
[1762592054487,10.7837219,3463.8,3463.7,0.001]
[1762592054694,6.27873429,3463.8,3463.7,0.001]
[1762592055208,6.27873429,3463.8,3463.1,0.02]
[1762592055209,4.14721488,3463.2,3463.1,0.02]
[1762592055419,9.13440249,3463.2,3463.1,0.02]
[1762592055632,9.62730249,3463.2,3463.1,0.02]
[1762592056611,9.62730249,3463.2,3462.1,0.02]
[1762592056612,4.14804889,3462.2,3462.1,0.02]
[1762592056908,5.26547823,3462.2,3462.1,0.02]
[1762592057080,5.75837823,3462.2,3462.1,0.02]
[1762592060184,2.37714134,3462.2,3462.1,0.02]
[1762592060512,5.75837823,3462.2,3462.1,0.02]
[1762592062042,1.96334134,3462.2,3462.1,0.02]
[1762592062192,4.63164889,3462.2,3462.1,0.02]
[1762592062397,4.63164889,3462.2,3462.1,0.021]
[1762592062398,5.12454889,3462.2,3462.1,0.021]
[1762592062717,1.743312,3462.2,3462.1,0.021]
[1762592063307,4.63164889,3462.2,3462.1,0.021]
[1762592063523,5.12454889,3462.2,3462.1,0.021]
[1762592063828,5.94424105,3462.2,3462.1,0.021]
[1762592064826,1.259712,3462.2,3462.1,0.4364]
[1762592065528,1.259712,3462.2,3462.1,0.021]
[1762592065758,1.259712,3462.2,3462.1,0.4364]
[1762592066108,1.259712,3462.2,3462.1,0.021]
[1762592066794,1.259712,3462.2,3462.1,0.4364]
[1762592067029,1.259712,3462.2,3462.1,0.5311]
[1762592067342,2.88802975,3462.6,3462.1,0.9465]
[1762592067550,0.144,3462.2,3462.1,3.41950466]
[1762592067838,0.144,3462.2,3462.1,0.5311]
[1762592068541,0.6276,3462.2,3462.1,0.021]
[1762592069594,0.144,3462.2,3462.1,0.021]
[1762592072107,0.144,3462.2,3462.1,3.32482032]
[1762592072536,0.144,3462.2,3462.1,0.4364]
[1762592074722,0.144,3462.2,3462.1,3.83492032]
[1762592075214,0.144,3462.2,3462.1,0.4364]
[1762592076227,0.144,3462.2,3462.1,0.021]
[1762592076430,0.6363,3462.2,3462.1,0.021]
[1762592076639,0.6363,3462.2,3462.1,2.90942032]
[1762592076839,0.6363,3462.2,3462.1,3.32482032]
[1762592076840,0.144,3462.2,3462.1,3.32482032]
[1762592077009,2.88776979,3462.9,3462.1,3.32482032]
[1762592077010,0.15095664,3463.2,3462.6,2.88799647]
[1762592077230,0.4512,3463.5,3462.4,0.4154]
[1762592077428,0.144,3462.8,3462.7,2.88791983]
[1762592077668,0.144,3462.8,3462.7,0.4154]
[1762592077963,0.6363,3462.8,3462.2,0.144]
[1762592078163,0.6363,3462.8,3462.6,2.88800306]
[1762592078164,0.144,3462.8,3462.6,2.88800306]
[1762592078568,0.144,3462.8,3462.5,2.88808664]
[1762592078930,0.144,3462.8,3462.6,2.88799072]
[1762592079536,0.144,3462.8,3462.6,2.88899072]
[1762592079740,0.144,3462.8,3462.6,0.001]
[1762592080039,0.4923,3462.7,3462.6,0.001]
[1762592080738,3.83141983,3462.7,3462.6,0.001]
[1762592081074,4.50333285,3462.7,3462.6,0.001]
[1762592081476,1.61541302,3462.7,3462.6,0.001]
[1762592081676,0.4512,3463.2,3462.6,0.001]
[1762592081869,1.259712,3462.9,3462.6,0.4164]
[1762592082040,0.4923,3462.7,3462.6,0.001]
[1762592082248,0.9435,3462.7,3462.6,0.001]
[1762592082762,1.450712,3463.3,3462.6,0.4164]
[1762592082763,1.259712,3462.9,3462.6,0.4164]
[1762592083171,3.38360424,3463.2,3462.6,0.4164]
[1762592083358,0.35746042,3463.1,3462.6,0.4164]
[1762592083752,0.35746042,3463.1,3462.6,0.8318]
[1762592084074,0.35746042,3463.1,3462.6,0.4164]
[1762592084266,2.88767423,3463.0,3462.6,0.4164]
[1762592084466,2.88767566,3463.0,3462.6,0.4164]
[1762592086294,3.74116961,3463.1,3462.6,0.4164]
[1762592087191,2.88767014,3463.0,3462.6,0.4164]
[1762592087971,0.35746042,3463.1,3462.9,0.4154]
[1762592088171,0.144,3462.9,3462.7,2.887873]
[1762592088584,0.144,3462.9,3462.6,2.88897849]
[1762592088896,0.144,3462.9,3462.8,0.4154]
[1762592090414,0.144,3462.9,3462.6,2.88894377]
[1762592090415,0.6355,3462.9,3462.6,0.001]
[1762592091681,0.3961,3462.7,3462.6,0.001]
[1762592091975,3.28401983,3462.7,3462.6,0.001]
[1762592092240,0.3961,3462.7,3462.6,0.001]
[1762592092562,1.259712,3463.0,3462.6,0.4164]
[1762592092741,0.4961,3463.0,3462.6,0.4164]
[1762592093054,0.89210836,3463.0,3462.6,0.001]
[1762592093255,0.4961,3463.0,3462.6,0.001]
[1762592093614,1.259712,3463.0,3462.6,0.001]
[1762592093814,1.259712,3462.8,3462.6,0.001]
[1762592094042,0.4961,3462.9,3462.6,0.001]
[1762592095029,0.4915,3462.7,3462.6,0.001]
[1762592095720,1.755812,3462.9,3462.6,0.001]
[1762592096890,3.38385875,3462.9,3462.6,0.001]
[1762592097175,0.4915,3462.7,3462.6,0.001]
[1762592097946,3.38386885,3462.9,3462.6,0.001]
[1762592099877,3.37941983,3462.7,3462.6,0.001]
[1762592100043,3.87551983,3462.7,3462.6,0.001]
[1762592102571,0.4915,3462.7,3462.6,0.001]
[1762592102781,2.88788386,3462.8,3462.6,0.001]
[1762592102985,0.4817,3462.7,3462.6,0.001]
[1762592103189,3.36961983,3462.7,3462.6,0.001]
[1762592104391,4.66590469,3462.7,3462.6,0.001]
[1762592106768,4.18740469,3462.7,3462.6,0.001]
[1762592107361,4.66590469,3462.7,3462.6,0.001]
[1762592109705,5.92561669,3462.7,3462.6,0.001]
[1762592109857,6.70169942,3462.7,3462.6,0.001]
[1762592110059,5.44711669,3462.7,3462.6,0.001]
[1762592110258,5.92561669,3462.7,3462.6,0.001]
[1762592110457,6.70169942,3462.7,3462.6,0.001]
[1762592111081,5.92561669,3462.7,3462.6,0.001]
[1762592112564,6.07658293,3462.7,3462.6,0.001]
[1762592113802,6.85266566,3462.7,3462.6,0.001]
[1762592116094,6.07658293,3462.7,3462.6,0.001]
[1762592121503,6.37707842,3462.7,3462.6,0.001]
[1762592121815,6.85557842,3462.7,3462.6,0.001]
[1762592126728,6.07658293,3462.7,3462.6,0.001]
[1762592128891,5.59808293,3462.7,3462.6,0.001]
[1762592129133,6.37756453,3462.7,3462.6,0.001]
[1762592129502,4.29859807,3462.7,3462.6,0.4164]
[1762592129753,4.29859807,3462.7,3462.6,0.8318]
[1762592129917,4.14763183,3462.7,3462.6,0.8318]
[1762592131616,4.14763183,3462.7,3462.6,0.4164]
[1762592131935,5.10993183,3462.7,3462.6,0.001]
[1762592132106,4.85117091,3462.7,3462.6,0.001]
[1762592133347,4.14763183,3462.7,3462.6,0.8318]
[1762592133728,4.14763183,3462.7,3462.6,0.4164]
[1762592136328,2.88776873,3462.9,3462.6,0.4164]
[1762592136605,4.14754843,3462.8,3462.7,0.4154]
[1762592136810,4.29163183,3462.7,3462.6,0.001]
[1762592142878,5.98802223,3462.7,3462.6,0.001]
[1762592146163,10.954858,3462.7,3462.6,0.001]
[1762592146953,6.29802223,3462.7,3462.6,0.001]
[1762592149881,5.84402223,3462.7,3462.6,0.001]
[1762592150184,5.36532223,3462.7,3462.6,0.001]
[1762592151082,5.84402223,3462.7,3462.6,0.001]
[1762592151387,6.29802223,3462.7,3462.6,0.001]
[1762592157512,2.4774024,3462.7,3462.6,0.4164]
[1762592157719,4.14763183,3462.7,3462.6,0.4164]
[1762592158410,4.14763183,3462.7,3462.6,0.001]
[1762592159677,4.14763183,3462.7,3462.6,0.4164]
[1762592160012,1.259712,3462.7,3462.6,0.4164]
[1762592160328,4.14754843,3462.8,3462.6,0.4164]
[1762592160785,4.14763183,3462.7,3462.6,0.4164]
[1762592162032,4.14763183,3462.7,3462.6,0.001]
[1762592166229,5.96732936,3462.7,3462.6,0.001]
[1762592166737,6.74694677,3462.7,3462.6,0.001]
[1762592168261,5.47342936,3462.7,3462.6,0.001]
[1762592168460,4.97852936,3462.7,3462.6,0.001]
[1762592169149,5.47342936,3462.7,3462.6,0.001]
[1762592170158,4.97852936,3462.7,3462.6,0.001]
[1762592170462,5.47342936,3462.7,3462.6,0.001]
[1762592170768,6.25304677,3462.7,3462.6,0.001]
[1762592171550,6.74694677,3462.7,3462.6,0.001]
[1762592172624,6.25304677,3462.7,3462.6,0.001]
[1762592173458,6.74694677,3462.7,3462.6,0.001]
[1762592173825,6.25304677,3462.7,3462.6,0.001]
[1762592174025,5.75814677,3462.7,3462.6,0.001]
[1762592174225,1.259712,3462.7,3462.6,0.4164]
[1762592174649,4.14763183,3462.7,3462.6,0.4164]
[1762592174811,1.259712,3462.7,3462.6,0.4164]
[1762592175020,1.259712,3462.7,3462.6,0.8318]
[1762592175654,1.259712,3462.7,3462.6,3.71980323]
[1762592177454,1.259712,3462.7,3462.6,0.8318]
[1762592177655,1.259712,3462.7,3462.6,3.71980323]
[1762592179022,0.144,3462.8,3462.7,2.88791983]
[1762592179226,0.002,3463.1,3463.0,2.88766965]
[1762592179466,0.002,3463.1,3463.0,3.86246965]
[1762592180866,0.002,3463.1,3462.6,0.001]
[1762592180867,0.4969,3463.1,3462.6,0.001]
[1762592181164,0.144,3462.7,3462.6,0.001]
[1762592181571,0.144,3462.7,3462.6,0.4164]
[1762592181870,0.6389,3462.7,3462.6,0.001]
[1762592182034,4.02071983,3462.7,3462.6,0.001]
[1762592182234,3.52681983,3462.7,3462.6,0.001]
[1762592182516,4.78653183,3462.7,3462.6,0.001]
[1762592182672,10.61008609,3462.7,3462.6,0.001]
[1762592183044,1.403712,3462.7,3462.6,0.001]
[1762592183477,4.29163183,3462.7,3462.6,0.001]
[1762592184287,4.29163183,3462.7,3462.6,0.4164]
[1762592184441,4.29163183,3462.7,3462.6,0.001]
[1762592185048,5.28043183,3462.7,3462.6,0.001]
[1762592185280,6.67174395,3462.7,3462.6,0.001]
[1762592185574,11.18457972,3462.7,3462.6,0.001]
[1762592193211,11.96357468,3462.7,3462.6,0.001]
[1762592194123,11.16057972,3462.7,3462.6,0.001]
[1762592194418,4.14763183,3462.7,3462.6,0.001]
[1762592195209,4.62913183,3462.7,3462.6,0.001]
[1762592196186,5.09903183,3462.7,3462.6,0.001]
[1762592197922,9.6118676,3462.7,3462.6,0.001]
[1762592202514,5.09903183,3462.7,3462.6,0.001]
[1762592202716,1.741212,3462.7,3462.6,0.001]
[1762592203038,5.07803183,3462.7,3462.6,0.001]
[1762592203219,6.41416794,3462.7,3462.6,0.001]
[1762592206139,5.93936794,3462.7,3462.6,0.001]
[1762592206318,5.48376794,3462.7,3462.6,0.001]
[1762592207838,4.14763183,3462.7,3462.6,0.4164]
[1762592212426,4.92662679,3462.7,3462.6,0.4164]
[1762592213563,4.92662679,3462.7,3462.6,0.001]
[1762592214248,4.92662679,3462.7,3462.6,0.4164]
[1762592215044,4.14763183,3462.7,3462.6,0.4164]
[1762592215626,1.259712,3462.7,3462.6,0.8318]
[1762592215840,1.403712,3462.7,3462.6,0.4164]
[1762592216571,1.403712,3462.7,3462.6,0.8318]
[1762592217958,1.403712,3462.7,3462.6,0.4164]
[1762592219257,4.29163183,3462.7,3462.6,0.4164]
[1762592219874,1.403712,3462.7,3462.6,0.4164]
[1762592220283,6.83441329,3462.7,3462.6,0.001]
[1762592220679,6.05541833,3462.7,3462.6,0.001]
[1762592223988,7.09276948,3462.7,3462.6,0.001]
[1762592226689,6.59326948,3462.7,3462.6,0.001]
[1762592226989,5.55591833,3462.7,3462.6,0.001]
[1762592227285,6.02101833,3462.7,3462.6,0.001]
[1762592228252,7.05836948,3462.7,3462.6,0.001]
[1762592229092,6.02101833,3462.7,3462.6,0.001]
[1762592229599,6.42652233,3462.7,3462.6,0.001]
[1762592230973,6.542283,3462.7,3462.6,0.001]
[1762592231194,6.71185545,3462.7,3462.6,0.001]
[1762592231398,7.06119478,3462.7,3462.6,0.001]
[1762592232168,6.59609478,3462.7,3462.6,0.001]
[1762592233171,5.55591833,3462.7,3462.6,0.001]
[1762592233595,7.06119478,3462.7,3462.6,0.001]
[1762592233898,6.02101833,3462.7,3462.6,0.001]
[1762592234465,5.55591833,3462.7,3462.6,0.001]
[1762592236275,5.09441833,3462.7,3462.6,0.001]
[1762592237406,4.29859236,3462.7,3462.6,0.001]
[1762592238511,4.29859236,3462.7,3462.6,0.4164]
[1762592239073,4.75409236,3462.7,3462.6,0.001]
[1762592239471,4.29859236,3462.7,3462.6,0.001]
[1762592239816,4.29859236,3462.7,3462.6,0.4164]
[1762592240610,4.75409236,3462.7,3462.6,0.001]
[1762592240906,6.75116859,3462.7,3462.6,0.001]
[1762592241482,6.28606859,3462.7,3462.6,0.001]
[1762592241710,4.75409236,3462.7,3462.6,0.001]
[1762592242110,4.29859236,3462.7,3462.6,0.001]
[1762592242308,4.29859236,3462.7,3462.6,0.4164]
[1762592242492,5.07861852,3462.7,3462.6,0.8318]
[1762592242693,5.02861852,3462.7,3462.6,0.8318]
[1762592242921,4.87765799,3462.7,3462.6,0.4164]
[1762592243297,4.09763183,3462.7,3462.6,0.8318]
[1762592243801,4.09763183,3462.7,3462.6,0.4164]
[1762592245316,4.09763183,3462.7,3462.6,0.8318]
[1762592245486,4.09763183,3462.7,3462.6,0.4164]
[1762592248636,1.209712,3462.7,3462.6,0.4164]
[1762592248833,1.209712,3462.7,3462.6,0.8318]
[1762592249038,4.09763183,3462.7,3462.6,0.8318]
[1762592249226,1.209712,3462.7,3462.6,0.8318]
[1762592249741,0.144,3462.7,3462.6,0.8318]
[1762592251534,0.144,3462.7,3462.6,0.4164]
[1762592252018,0.144,3462.7,3462.6,0.8318]
[1762592252509,0.146,3462.7,3462.6,0.8318]
[1762592259947,0.146,3462.7,3462.6,0.4164]
[1762592261230,0.146,3462.7,3462.6,0.8318]
[1762592261975,0.146,3462.7,3462.6,0.4164]
[1762592266468,0.002,3462.7,3462.6,0.4164]
[1762592266666,0.002,3462.7,3462.6,0.8318]
[1762592266979,0.002,3462.7,3462.6,0.4164]
[1762592268164,0.002,3462.7,3462.6,0.001]
[1762592268376,0.5966,3462.7,3462.6,0.001]
[1762592269495,3.48451983,3462.7,3462.6,0.001]
[1762592269662,3.94361983,3462.7,3462.6,0.001]
[1762592270350,1.0557,3462.7,3462.6,0.001]
[1762592270670,3.48451983,3462.7,3462.6,0.001]
[1762592271891,3.43451983,3462.7,3462.6,0.001]
[1762592272181,3.89361983,3462.7,3462.6,0.001]
[1762592276085,3.89361983,3462.7,3462.6,0.4644]
[1762592276086,0.144,3462.7,3462.6,0.4644]
[1762592277763,3.03191983,3462.7,3462.6,0.4644]
[1762592277960,0.144,3462.7,3462.6,0.001]
[1762592278475,3.48251983,3462.7,3462.6,0.001]
[1762592280185,3.94161983,3462.7,3462.6,0.001]
[1762592280389,1.0537,3462.7,3462.6,0.001]
[1762592280588,0.5946,3462.7,3462.6,0.001]
[1762592280974,3.03191983,3462.7,3462.6,0.001]
[1762592281181,3.49541983,3462.7,3462.6,0.001]
[1762592282797,5.16835131,3462.7,3462.6,0.001]
[1762592283176,5.28408317,3462.7,3462.6,0.001]
[1762592284296,6.51716247,3462.7,3462.6,0.001]
[1762592284605,7.77687447,3462.7,3462.6,0.001]
[1762592284900,6.99684831,3462.7,3462.6,0.001]
[1762592288001,6.99884831,3462.7,3462.6,0.001]
[1762592288507,7.77872086,3462.7,3462.6,0.001]
[1762592290579,6.99884831,3462.7,3462.6,0.001]
[1762592292088,7.14981797,3462.7,3462.6,0.001]
[1762592293432,7.92932541,3462.7,3462.6,0.001]
[1762592293792,7.92931815,3462.7,3462.6,0.001]
[1762592295499,7.14981797,3462.7,3462.6,0.001]
[1762592295724,7.92927202,3462.7,3462.6,0.001]
[1762592296496,7.14981797,3462.7,3462.6,0.001]
[1762592298323,7.92925393,3462.7,3462.6,0.001]
[1762592299355,7.14981797,3462.7,3462.6,0.001]
[1762592308857,8.18999442,3462.7,3462.6,0.001]
[1762592309065,7.14981797,3462.7,3462.6,0.001]
[1762592309359,8.18999442,3462.7,3462.6,0.001]
[1762592313162,7.14981797,3462.7,3462.6,0.001]
[1762592315269,2.88825347,3462.3,3462.2,0.001]
[1762592315470,9.27680784,3462.3,3462.2,0.001]
[1762592315639,11.29116513,3462.3,3462.2,0.001]
[1762592315834,11.40691742,3462.3,3462.2,0.001]
[1762592316171,10.36553626,3462.3,3462.2,0.001]
[1762592316356,10.5211073,3462.3,3462.2,0.001]
[1762592316560,9.25672316,3462.3,3462.2,0.001]
[1762592316958,10.2977942,3462.3,3462.2,0.001]
[1762592317158,9.8174942,3462.3,3462.2,0.001]
[1762592317357,10.2977942,3462.3,3462.2,0.001]
[1762592317565,10.7920942,3462.3,3462.2,0.001]
[1762592317762,12.31572973,3462.3,3462.2,0.001]
[1762592319660,10.78035869,3462.3,3462.2,0.001]
[1762592319858,12.31572973,3462.3,3462.2,0.001]
[1762592321044,10.78035869,3462.3,3462.2,0.001]
[1762592321764,11.27465869,3462.3,3462.2,0.001]
[1762592325168,10.78035869,3462.3,3462.2,0.001]
[1762592326269,11.26875869,3462.3,3462.2,0.001]
[1762592326469,11.37438999,3462.3,3462.2,0.001]
[1762592328890,10.88598999,3462.3,3462.2,0.001]
[1762592329495,11.37438999,3462.3,3462.2,0.001]
[1762592336162,10.88598999,3462.3,3462.2,0.001]
[1762592336802,11.37438999,3462.3,3462.2,0.001]
[1762592337335,12.41546103,3462.3,3462.2,0.001]
[1762592337535,11.37438999,3462.3,3462.2,0.001]
[1762592338229,12.41546103,3462.3,3462.2,0.001]
[1762592338532,10.88598999,3462.3,3462.2,0.001]
[1762592339102,11.92706103,3462.3,3462.2,0.001]
[1762592339332,4.92833629,3462.3,3462.2,1.0667]
[1762592339534,4.14796547,3462.3,3462.2,1.0667]
[1762592341524,9.54667299,3462.3,3462.2,0.6033]
[1762592342034,4.92833629,3462.3,3462.2,0.6033]
[1762592344308,1.259712,3462.3,3462.2,1.0615]
[1762592344541,4.14796547,3462.3,3462.2,1.0615]
[1762592344836,1.259712,3462.3,3462.2,1.0615]
[1762592345038,4.14796547,3462.3,3462.2,1.0615]
[1762592348610,4.14796547,3462.3,3462.2,0.6033]
[1762592350356,10.50324595,3462.3,3462.2,0.001]
[1762592350555,11.28361677,3462.3,3462.2,0.001]
[1762592352755,10.50324595,3462.3,3462.2,0.001]
[1762592353170,11.22630572,3462.3,3462.2,0.001]
[1762592353462,10.18523468,3462.3,3462.2,0.001]
[1762592353813,10.65423468,3462.3,3462.2,0.001]
[1762592354029,10.18523468,3462.3,3462.2,0.001]
[1762592354625,5.08079798,3462.3,3462.2,0.4644]
[1762592355620,5.86103895,3462.3,3462.2,0.4644]
[1762592355825,5.07919517,3462.3,3462.2,0.4644]
[1762592356107,1.259712,3462.3,3462.2,0.9226]
[1762592356326,4.14796547,3462.3,3462.2,0.9226]
[1762592356952,4.63406547,3462.3,3462.2,0.001]
[1762592357248,5.82612065,3462.3,3462.2,0.001]
[1762592357552,6.32100739,3462.3,3462.2,0.001]
[1762592358042,5.83490739,3462.3,3462.2,0.001]
[1762592359556,6.32100739,3462.3,3462.2,0.001]
[1762592360562,7.83107843,3462.3,3462.2,0.001]
[1762592361262,6.79000739,3462.3,3462.2,0.001]
[1762592361463,6.90576538,3462.3,3462.2,0.001]
[1762592362236,11.52410208,3462.3,3462.2,0.001]
[1762592363874,6.43676538,3462.3,3462.2,0.001]
[1762592364083,6.9908339,3462.3,3462.2,0.001]
[1762592364269,5.95066538,3462.3,3462.2,0.001]
[1762592364470,5.83490739,3462.3,3462.2,0.4644]
[1762592365040,3.03923761,3462.3,3462.2,0.4644]
[1762592365243,4.29894961,3462.3,3462.2,0.4644]
[1762592365476,4.14796547,3462.3,3462.2,0.4644]
[1762592368583,1.403712,3462.3,3462.2,0.9226]
[1762592368749,0.144,3462.3,3462.2,0.9226]
[1762592370359,0.144,3462.3,3462.2,1.0666]
[1762592370885,0.144,3462.3,3462.2,0.4644]
[1762592371182,4.29196547,3462.3,3462.2,0.4644]
[1762592372366,1.403712,3462.3,3462.2,0.4644]
[1762592372565,4.29196547,3462.3,3462.2,0.9278]
[1762592372878,1.403712,3462.3,3462.2,0.9278]
[1762592380195,1.403712,3462.3,3462.2,0.4644]
[1762592380994,1.3990638,3462.3,3462.2,0.4644]
[1762592381193,4.28731727,3462.3,3462.2,0.4644]
[1762592381569,5.22181727,3462.3,3462.2,0.001]
[1762592382116,10.69778594,3462.3,3462.2,0.001]
[1762592382918,10.81353153,3462.3,3462.2,0.001]
[1762592383080,11.59359213,3462.3,3462.2,0.001]
[1762592385439,10.81353153,3462.3,3462.2,0.001]
[1762592385881,10.35613153,3462.3,3462.2,0.001]
[1762592386081,11.13539937,3462.3,3462.2,0.001]
[1762592386421,4.26371106,3462.3,3462.2,0.001]
[1762592387626,10.6048156,3462.3,3461.1,0.164]
[1762592387829,9.13578623,3461.6,3461.1,0.02]
[1762592387992,3.01865641,3460.7,3460.3,0.4583]
[1762592388197,1.388712,3460.7,3460.3,0.4583]
[1762592388405,1.259712,3460.5,3460.3,0.4583]
[1762592388591,4.14947677,3460.5,3460.3,0.4583]
[1762592388796,4.14947677,3460.5,3460.4,0.4601]
[1762592389733,1.259712,3460.5,3460.4,0.4601]
[1762592390027,4.14946781,3460.5,3460.4,0.4601]
[1762592391496,1.259712,3460.3,3460.1,0.005]
[1762592391701,4.14971835,3460.2,3460.1,0.005]
[1762592392329,4.60831835,3460.2,3460.1,0.005]
[1762592392531,5.09321835,3460.2,3460.1,0.005]
[1762592393199,6.3892565,3460.2,3460.1,0.005]
[1762592394824,2.89084181,3459.2,3459.1,0.005]
[1762592395025,9.02656583,3459.2,3459.1,0.005]
[1762592395199,5.77872402,3459.2,3459.1,0.4651]
[1762592395605,1.259712,3459.2,3459.1,0.5685]
[1762592395818,1.259712,3459.2,3459.1,1.0268]
[1762592400928,1.259712,3459.2,3459.1,3.91772538]
[1762592401140,4.52188755,3459.8,3459.1,1.0268]
[1762592401452,1.259712,3459.4,3459.1,0.1084]
[1762592401624,8.67244136,3459.2,3459.1,0.005]
[1762592403847,1.259712,3459.2,3459.1,0.5718]
[1762592404040,1.259712,3459.2,3459.1,1.0352]
[1762592404239,1.259712,3459.2,3459.1,3.46272538]
[1762592404430,1.259712,3459.2,3459.1,3.92612538]
[1762592404625,1.259712,3459.2,3459.1,1.0352]
[1762592404838,1.259712,3459.8,3459.2,2.89083267]
[1762592405017,1.259712,3459.8,3459.5,0.4634]
[1762592405220,1.259712,3459.8,3459.2,3.35423267]
[1762592405221,1.259712,3459.8,3459.7,0.4634]
[1762592405436,4.15005248,3459.8,3459.7,0.4634]
[1762592406453,8.6718733,3459.9,3459.7,0.4634]
[1762592406952,5.78159955,3459.9,3459.7,0.4634]
[1762592407158,8.6719293,3459.9,3459.7,0.4634]
[1762592407751,3.34348891,3460.1,3459.7,0.4634]
[1762592407752,4.60327292,3460.1,3459.8,0.4634]
[1762592407918,1.259712,3459.9,3459.8,0.4634]
[1762592408122,4.14999416,3459.9,3459.4,0.4634]
[1762592408319,1.259712,3459.9,3459.4,0.4634]
[1762592408526,1.259712,3459.9,3459.4,3.35407032]
[1762592408754,1.259712,3459.9,3459.8,0.4634]
[1762592409625,1.259712,3459.9,3459.3,0.4634]
[1762592409818,2.89050757,3459.6,3459.1,0.1084]
[1762592410061,3.03442646,3459.7,3459.1,0.1084]
[1762592410062,0.144,3459.4,3459.1,0.1084]
[1762592410654,0.144,3459.4,3459.3,0.4634]
[1762592411261,0.6382,3459.4,3459.1,0.1084]
[1762592411435,5.279938,3459.4,3459.1,0.005]
[1762592411634,3.21864181,3459.2,3459.1,0.005]
[1762592411851,1.587512,3459.2,3459.1,0.005]
[1762592412570,1.259712,3459.2,3459.1,0.5718]
[1762592413535,1.259712,3459.2,3459.1,0.4684]
[1762592415268,1.259712,3459.2,3459.1,0.5718]
[1762592415512,0.94466742,3460.3,3459.1,0.5718]
[1762592415513,0.144,3459.7,3459.2,2.89084181]
[1762592415811,1.403712,3459.7,3459.1,1.12103489]
[1762592416507,0.144,3459.7,3459.3,2.89074021]
[1762592416738,0.144,3459.7,3459.6,0.4634]
[1762592417226,0.144,3459.7,3459.6,0.9268]
[1762592418024,0.144,3459.7,3459.6,0.4634]
[1762592419925,0.144,3459.7,3459.6,0.9268]
[1762592420146,0.144,3459.7,3459.1,0.2524]
[1762592420289,1.259712,3459.5,3459.1,0.005]
[1762592420601,0.144,3459.4,3459.1,0.005]
[1762592421532,1.753912,3459.2,3459.1,0.005]
[1762592421754,3.38504181,3459.2,3459.1,0.005]
[1762592422038,5.13605381,3459.2,3459.1,0.005]
[1762592422237,7.52716527,3459.2,3459.1,0.005]
[1762592422543,8.30670108,3459.2,3459.1,0.005]
[1762592425591,8.76013772,3459.2,3459.1,0.005]
[1762592425793,8.15403772,3459.2,3459.1,0.005]
[1762592426590,7.37450191,3459.2,3459.1,0.005]
[1762592427231,8.15430208,3459.2,3459.1,0.005]
[1762592428466,7.37450191,3459.2,3459.1,0.005]
[1762592428766,7.37305643,3459.2,3459.1,0.006]
[1762592428943,6.88175643,3459.2,3459.1,0.006]
[1762592429129,5.09674497,3459.2,3459.1,0.006]
[1762592429663,5.58804497,3459.2,3459.1,0.006]
[1762592431143,6.36784514,3459.2,3459.1,0.006]
[1762592431745,5.58804497,3459.2,3459.1,0.006]
[1762592433018,5.73917632,3459.2,3459.1,0.006]
[1762592433219,7.69738882,3459.2,3459.1,0.006]
[1762592435631,8.47617084,3459.2,3459.1,0.006]
[1762592435956,7.24395218,3459.2,3459.1,0.006]
[1762592436161,8.0227342,3459.2,3459.1,0.006]
[1762592437322,7.24395218,3459.2,3459.1,0.006]
[1762592437778,6.60152083,3459.2,3459.1,0.006]
[1762592438120,4.15055381,3459.2,3459.1,0.4708]
[1762592438860,4.15055381,3459.2,3459.1,0.006]
[1762592439171,5.09995381,3459.2,3459.1,0.006]
[1762592439376,5.87873583,3459.2,3459.1,0.006]
[1762592439537,5.40103583,3459.2,3459.1,0.006]
[1762592439722,7.76399943,3459.2,3459.1,0.006]
[1762592440066,6.50751741,3459.2,3459.1,0.006]
[1762592440621,6.98521741,3459.2,3459.1,0.006]
[1762592441557,6.50751741,3459.2,3459.1,0.006]
[1762592443748,11.02940496,3459.2,3459.1,0.006]
[1762592443947,12.27618698,3459.2,3459.1,0.006]
[1762592445439,2.89100896,3459.0,3458.4,0.4648]
[1762592445635,0.144,3458.5,3458.4,0.4648]
[1762592446058,0.144,3458.5,3458.4,0.9296]
[1762592446769,1.403712,3458.5,3458.4,0.9296]
[1762592447641,2.89109813,3458.9,3458.4,0.9296]
[1762592447642,2.5010049,3459.1,3458.4,0.9296]